[Event "Belt Road Women 2019"]
[Site "Shaoxing"]
[Date "2019.07.09"]
[Round "2.17"]
[White "Zhou, Yafei"]
[Black "Hu, Yu A."]
[Result "1/2-1/2"]
[ECO "D55"]
[WhiteElo "1720"]
[BlackElo "2095"]
[Annotator "NA"]
[PlyCount "111"]
[EventDate "2019.07.08"]
[EventType "swiss"]
[EventCountry "CHN"]
[SourceTitle "playchess.com"]
[Source "ChessBase"]
[SourceQuality "1"]
[TimeControl "5400+30"]

1. d4 {[%emt 0:00:00]} Nf6 {[%emt 0:00:36]} 2. c4 {[%emt 0:00:00]} e6 {[%emt 0:00:25]} 3. Nf3 {[%emt 0:00:00]} d5 {[%emt 0:00:21]} 4. Nc3 {[%emt 0:00:00]} Nbd7 {[%emt 0:00:22]} 5. Bg5 {[%emt 0:00:07]} h6 {[%emt 0:00:40]} 6. Bxf6 {[%emt 0:00:16]} Nxf6 {[%emt 0:01:00]} 7. e3 {[%emt 0:00:07]} Be7 {[%emt 0:02:09]} 8. Bd3 {[%emt 0:00:17]} O-O {[%emt 0:00:54]} 9. O-O {[%emt 0:00:08]} b6 {[%emt 0:10:11]} 10. cxd5 {[%emt 0:00:25]} exd5 {[%emt 0:00:56]} 11. Rc1 {[%emt 0:00:33]} Bb7 {[%emt 0:01:04]} 12. Qb3 {[%emt 0:01:49]} c5 {[%emt 0:05:31]} 13. dxc5 {[%emt 0:01:06]} Bxc5 {[%emt 0:00:08]} 14. Rfd1 {[%emt 0:01:04]} Qe7 {[%emt 0:00:28]} 15. Bf5 {[%emt 0:06:01]} Rad8 {[%emt 0:03:27]} 16. Nb5 {[%emt 0:10:54]} g6 {[%emt 0:09:08]} 17. Bb1 {[%emt 0:01:30]} a6 {[%emt 0:01:17]} 18. Nbd4 {[%emt 0:00:14]} Ne4 {[%emt 0:00:36]} 19. Ne2 {[%emt 0:07:10]} Rfe8 {[%emt 0:06:54]} 20. Bxe4 {[%emt 0:04:08]} dxe4 {[%emt 0:00:06]} 21. Nfd4 {[%emt 0:00:20]} Rd5 {[%emt 0:13:46]} 22. Nf4 {[%emt 0:04:39]} Rd6 {[%emt 0:00:07]} 23. Rd2 {[%emt 0:04:40]} Red8 {[%emt 0:00:32]} 24. Rcd1 {[%emt 0:00:32]} Qf6 {[%emt 0:01:07]} 25. Nfe2 {[%emt 0:10:19]} a5 {[%emt 0:00:52]} 26. a3 {[%emt 0:01:21]} R6d7 {[%emt 0:17:20]} 27. Qc4 {[%emt 0:10:08]} Qe7 {[%emt 0:14:01]} 28. h3 {[%emt 0:01:42]} Bd6 {[%emt 0:02:16]} 29. Qb5 {[%emt 0:04:12]} Qe5 {[%emt 0:00:19]} 30. g3 {[%emt 0:03:00]} Bc5 {[%emt 0:01:39]} 31. b4 {[%emt 0:03:33]} axb4 {[%emt 0:01:26]} 32. axb4 {[%emt 0:00:10]} Bd6 {[%emt 0:00:14]} 33. Qxb6 {[%emt 0:02:08]} Bb8 {[%emt 0:00:17]} 34. Nc1 {[%emt 0:03:58]} Qh5 {[%emt 0:00:33]} 35. h4 {[%emt 0:06:37]} Qg4 {[%emt 0:01:00]} 36. Nce2 {[%emt 0:02:02]} Be5 {[%emt 0:00:34]} 37. Qb5 {[%emt 0:03:07]} Bf6 {[%emt 0:01:03]} 38. Nb3 {[%emt 0:01:52]} Rxd2 {[%emt 0:00:57]} 39. Rxd2 {[%emt 0:00:05]} Rd3 {[%emt 0:00:33]} 40. Qxb7 {[%emt 0:03:33]} Rxb3 {[%emt 0:00:04]} 41. Qb8+ {[%emt 0:00:28]} Kg7 {[%emt 0:00:06]} 42. Qf4 {[%emt 0:00:21]} Qxf4 {[%emt 0:02:27]} 43. Nxf4 {[%emt 0:00:07]} Rxb4 {[%emt 0:00:03]} 44. Kf1 {[%emt 0:00:41]} Be5 {[%emt 0:00:21]} 45. Nd5 {[%emt 0:00:41]} Rb1+ {[%emt 0:00:52]} 46. Ke2 {[%emt 0:00:08]} f5 {[%emt 0:00:56]} 47. Nf4 {[%emt 0:05:15]} Rb2 {[%emt 0:00:23]} 48. Rxb2 {[%emt 0:00:37]} Bxb2 {[%emt 0:00:04]} 49. f3 {[%emt 0:00:41]} exf3+ {[%emt 0:00:07]} 50. Kxf3 {[%emt 0:00:06]} Be5 {[%emt 0:00:30]} 51. e4 {[%emt 0:01:11]} fxe4+ {[%emt 0:00:20]} 52. Kxe4 {[%emt 0:00:07]} Bxf4 {[%emt 0:00:21]} 53. Kxf4 {[%emt 0:00:25]} Kf6 {[%emt 0:00:04]} 54. g4 {[%emt 0:00:15]} g5+ {[%emt 0:00:19]} 55. hxg5+ {[%emt 0:00:07]} hxg5+ {[%emt 0:00:03]} 56. Ke4 {[%emt 0:00:13]} 1/2-1/2

[Event "Belt Road Women 2019"]
[Site "Shaoxing"]
[Date "2019.07.10"]
[Round "3.1"]
[White "Zhu, Jiner"]
[Black "Tokhirjonova, Gulrukhbegim"]
[Result "1/2-1/2"]
[ECO "C78"]
[WhiteElo "2454"]
[BlackElo "2422"]
[Annotator "ChessBase"]
[PlyCount "74"]
[EventDate "2019.07.08"]
[EventType "swiss"]
[EventCountry "CHN"]
[SourceTitle "playchess.com"]
[Source "ChessBase"]
[SourceQuality "1"]
[TimeControl "5400+30"]

1. e4 {[%emt 0:00:00]} e5 {[%emt 0:01:48]} 2. Nf3 {[%emt 0:00:00]} Nc6 {[%emt 0:00:19]} 3. Bb5 {[%emt 0:00:00]} a6 {[%emt 0:00:16]} 4. Ba4 {[%emt 0:00:04]} Nf6 {[%emt 0:00:14]} 5. O-O {[%emt 0:00:12]} b5 {[%emt 0:00:18]} 6. Bb3 {[%emt 0:00:08]} Bb7 {[%emt 0:00:22]} 7. c3 {[%emt 0:06:14]} Nxe4 {[%emt 0:04:55]} 8. Re1 {[%emt 0:06:18]} d5 {[%emt 0:00:33]} 9. d3 {[%emt 0:01:11]} Nc5 {[%emt 0:06:11]} 10. Nxe5 {[%emt 0:02:26]} Nxe5 {[%emt 0:00:42]} 11. Rxe5+ {[%emt 0:02:43]} Ne6 {[%emt 0:00:40]} 12. Qh5 {[%emt 0:04:50]} Qd7 {[%emt 0:05:06]} 13. d4 {[%emt 0:09:26]} Bd6 {[%emt 0:01:06]} 14. Re2 {[%emt 0:02:24]} O-O {[%emt 0:01:22]} 15. Bc2 {[%emt 0:01:37]} g6 {[%emt 0:01:43]} 16. Qf3 {[%emt 0:06:11]} c5 {[%emt 0:09:54]} 17. Bh6 {[%emt 0:01:50]} cxd4 {[%emt 0:01:07]} 18. Bxf8 {[%emt 0:01:19]} Rxf8 {[%emt 0:00:25]} 19. Nd2 {[%emt 0:03:46]} Rc8 {[%emt 0:04:45]} 20. Rd1 {[%emt 0:08:03]} b4 {[%emt 0:07:20]} 21. Nb1 {[%emt 0:07:40]} dxc3 {[%emt 0:01:26]} 22. bxc3 {[%emt 0:00:04]} d4 {[%emt 0:00:18]} 23. Qg4 {[%emt 0:00:17]} h5 {[%emt 0:13:43]} 24. Qh3 {[%emt 0:00:17]} Rc5 {[%emt 0:11:49]} 25. Bb3 {[%emt 0:17:31]} Bxg2 {[%emt 0:06:36]} 26. Qxe6 {[%emt 0:00:35]} fxe6 {[%emt 0:02:08]} 27. Bxe6+ {[%emt 0:00:06]} Qxe6 {[%emt 0:00:04]} 28. Rxe6 {[%emt 0:00:05]} Rg5 {[%emt 0:00:48]} 29. h4 {[%emt 0:03:28]} Rg4 {[%emt 0:04:26]} 30. Rxd4 {[%emt 0:03:13]} Be4+ {[%emt 0:01:24]} 31. Kf1 {[%emt 0:00:07]} bxc3 {[%emt 0:00:13]} 32. Rdxe4 {[%emt 0:00:51]} Rxe4 {[%emt 0:06:46]} 33. Rxg6+ {[%emt 0:00:22]} Kf7 {[%emt 0:01:18]} 34. Nxc3 {[%emt 0:00:04]} Kxg6 {[%emt 0:01:08]} 35. Nxe4 {[%emt 0:00:04]} Be7 {[%emt 0:00:04]} 36. a4 {[%emt 0:00:57]} Kf5 {[%emt 0:02:28]} 37. Ng3+ {[%emt 0:01:39]} Ke5 {[%emt 0:00:56]} 1/2-1/2

[Event "Belt Road Women 2019"]
[Site "Shaoxing"]
[Date "2019.07.10"]
[Round "3.2"]
[White "Munguntuul, Batkhuyag"]
[Black "Dzagnidze, Nana"]
[Result "1/2-1/2"]
[ECO "B33"]
[WhiteElo "2412"]
[BlackElo "2511"]
[Annotator "ChessBase"]
[PlyCount "82"]
[EventDate "2019.07.08"]
[EventType "swiss"]
[EventCountry "CHN"]
[SourceTitle "playchess.com"]
[Source "ChessBase"]
[SourceQuality "1"]
[TimeControl "5400+30"]

1. e4 {[%emt 0:00:00]} c5 {[%emt 0:00:00]} 2. Nf3 {[%emt 0:00:02]} Nc6 {[%emt 0:00:00]} 3. d4 {[%emt 0:00:11]} cxd4 {[%emt 0:00:00]} 4. Nxd4 {[%emt 0:00:06]} Nf6 {[%emt 0:00:00]} 5. Nc3 {[%emt 0:00:17]} e6 {[%emt 0:01:46]} 6. Ndb5 {[%emt 0:02:47]} d6 {[%emt 0:00:14]} 7. Bf4 {[%emt 0:00:16]} e5 {[%emt 0:00:06]} 8. Bg5 {[%emt 0:00:05]} a6 {[%emt 0:00:06]} 9. Na3 {[%emt 0:00:03]} b5 {[%emt 0:00:07]} 10. Nd5 {[%emt 0:00:36]} Be7 {[%emt 0:00:06]} 11. Bxf6 {[%emt 0:00:09]} Bxf6 {[%emt 0:00:05]} 12. c4 {[%emt 0:00:08]} b4 {[%emt 0:00:19]} 13. Nc2 {[%emt 0:00:05]} O-O {[%emt 0:00:23]} 14. g3 {[%emt 0:02:08]} Be6 {[%emt 0:13:47]} 15. Bg2 {[%emt 0:02:27]} Bxd5 {[%emt 0:16:30]} 16. Qxd5 {[%emt 0:21:07]} Nd4 {[%emt 0:03:15]} 17. Nxd4 {[%emt 0:03:15]} exd4 {[%emt 0:00:05]} 18. e5 {[%emt 0:04:23]} Qe7 {[%emt 0:03:10]} 19. Qxd6 {[%emt 0:03:45]} Qxd6 {[%emt 0:00:43]} 20. exd6 {[%emt 0:00:02]} Rac8 {[%emt 0:00:06]} 21. Bh3 {[%emt 0:12:49]} Rxc4 {[%emt 0:00:22]} 22. Kd2 {[%emt 0:00:37]} Rc6 {[%emt 0:17:17]} 23. d7 {[%emt 0:01:04]} Rd6 {[%emt 0:00:01]} 24. Rac1 {[%emt 0:04:44]} d3 {[%emt 0:03:37]} 25. Rc4 {[%emt 0:00:44]} Bxb2 {[%emt 0:01:30]} 26. Rxb4 {[%emt 0:01:09]} Bd4 {[%emt 0:00:23]} 27. Rb7 {[%emt 0:05:13]} Bb6 {[%emt 0:22:44]} 28. Rc1 {[%emt 0:05:42]} Rd8 {[%emt 0:00:34]} 29. Rc8 {[%emt 0:04:25]} Ba5+ {[%emt 0:00:06]} 30. Kd1 {[%emt 0:00:19]} Kf8 {[%emt 0:00:01]} 31. Rb3 {[%emt 0:06:30]} Ke7 {[%emt 0:00:25]} 32. Ra3 {[%emt 0:06:43]} Rd5 {[%emt 0:01:06]} 33. Rxd8 {[%emt 0:03:21]} Kxd8 {[%emt 0:07:29]} 34. Bg2 {[%emt 0:00:20]} Re5 {[%emt 0:00:07]} 35. Rxd3 {[%emt 0:00:10]} Re1+ {[%emt 0:00:13]} 36. Kc2 {[%emt 0:00:02]} Re2+ {[%emt 0:00:10]} 37. Kb3 {[%emt 0:00:45]} Rxf2 {[%emt 0:00:05]} 38. Bc6 {[%emt 0:05:16]} Rf6 {[%emt 0:01:26]} 39. Ba4 {[%emt 0:00:19]} Rb6+ {[%emt 0:01:20]} 40. Kc2 {[%emt 0:00:05]} Rb4 {[%emt 0:00:32]} 41. Bb3 {[%emt 0:00:06]} Rb7 {[%emt 0:00:42]} 1/2-1/2

[Event "Belt Road Women 2019"]
[Site "Shaoxing"]
[Date "2019.07.10"]
[Round "3.3"]
[White "Kosteniuk, Alexandra"]
[Black "Ushenina, Anna"]
[Result "1/2-1/2"]
[ECO "C42"]
[WhiteElo "2517"]
[BlackElo "2448"]
[Annotator "ChessBase"]
[PlyCount "105"]
[EventDate "2019.07.08"]
[EventType "swiss"]
[EventCountry "CHN"]
[SourceTitle "playchess.com"]
[Source "ChessBase"]
[SourceQuality "1"]
[TimeControl "5400+30"]

1. e4 {[%emt 0:00:00]} e5 {[%emt 0:00:00]} 2. Nf3 {[%emt 0:00:00]} Nf6 {[%emt 0:00:00]} 3. Nxe5 {[%emt 0:00:23]} d6 {[%emt 0:00:12]} 4. Nf3 {[%emt 0:00:07]} Nxe4 {[%emt 0:00:06]} 5. d4 {[%emt 0:00:09]} d5 {[%emt 0:01:10]} 6. Bd3 {[%emt 0:00:07]} Bf5 {[%emt 0:00:43]} 7. O-O {[%emt 0:01:19]} Be7 {[%emt 0:00:37]} 8. Re1 {[%emt 0:02:31]} O-O {[%emt 0:01:22]} 9. Nbd2 {[%emt 0:00:11]} Nd6 {[%emt 0:00:28]} 10. Bxf5 {[%emt 0:04:35]} Nxf5 {[%emt 0:00:05]} 11. Nb3 {[%emt 0:00:07]} Nd7 {[%emt 0:09:22]} 12. Ne5 {[%emt 0:04:40]} c6 {[%emt 0:16:42]} 13. Qg4 {[%emt 0:15:14]} g6 {[%emt 0:14:22]} 14. Bf4 {[%emt 0:08:26]} Re8 {[%emt 0:13:59]} 15. Re2 {[%emt 0:08:34]} Bf8 {[%emt 0:06:17]} 16. Rae1 {[%emt 0:00:31]} Nxe5 {[%emt 0:00:35]} 17. Bxe5 {[%emt 0:04:46]} f6 {[%emt 0:07:01]} 18. Bf4 {[%emt 0:00:06]} Qd7 {[%emt 0:00:47]} 19. a4 {[%emt 0:10:09]} Kf7 {[%emt 0:02:58]} 20. c3 {[%emt 0:00:23]} h5 {[%emt 0:07:01]} 21. Qf3 {[%emt 0:00:14]} Rxe2 {[%emt 0:00:07]} 22. Qxe2 {[%emt 0:00:13]} Ng7 {[%emt 0:01:09]} 23. Qf3 {[%emt 0:05:26]} Re8 {[%emt 0:00:28]} 24. Rxe8 {[%emt 0:00:34]} Qxe8 {[%emt 0:00:31]} 25. Kf1 {[%emt 0:00:25]} Nf5 {[%emt 0:01:45]} 26. h3 {[%emt 0:00:35]} h4 {[%emt 0:01:16]} 27. g4 {[%emt 0:01:50]} hxg3 {[%emt 0:00:20]} 28. fxg3 {[%emt 0:00:03]} Nd6 {[%emt 0:04:05]} 29. Bxd6 {[%emt 0:15:13]} Bxd6 {[%emt 0:00:01]} 30. Nd2 {[%emt 0:00:17]} Qh8 {[%emt 0:03:43]} 31. h4 {[%emt 0:01:31]} Qh6 {[%emt 0:00:59]} 32. Ke2 {[%emt 0:00:25]} Qh8 {[%emt 0:01:16]} 33. b4 {[%emt 0:03:25]} a6 {[%emt 0:00:05]} 34. Kf2 {[%emt 0:01:05]} Qc8 {[%emt 0:03:21]} 35. Nf1 {[%emt 0:00:51]} Kg7 {[%emt 0:01:13]} 36. Ne3 {[%emt 0:03:46]} Qh3 {[%emt 0:01:03]} 37. Nf1 {[%emt 0:04:36]} Kf7 {[%emt 0:00:33]} 38. Qd3 {[%emt 0:01:32]} Kg7 {[%emt 0:00:32]} 39. Qf3 {[%emt 0:00:24]} Kf7 {[%emt 0:00:07]} 40. b5 {[%emt 0:00:39]} axb5 {[%emt 0:00:05]} 41. axb5 {[%emt 0:00:03]} Ke6 {[%emt 0:03:02]} 42. Qe3+ {[%emt 0:02:08]} Kf7 {[%emt 0:00:05]} 43. Qd3 {[%emt 0:00:54]} Qg4 {[%emt 0:01:10]} 44. bxc6 {[%emt 0:00:19]} bxc6 {[%emt 0:00:01]} 45. Qa6 {[%emt 0:00:29]} Qd7 {[%emt 0:00:23]} 46. Qa8 {[%emt 0:00:05]} Kg7 {[%emt 0:00:28]} 47. Kg2 {[%emt 0:00:31]} Kh7 {[%emt 0:00:56]} 48. Ne3 {[%emt 0:01:11]} Kg7 {[%emt 0:00:12]} 49. Kf3 {[%emt 0:01:43]} f5 {[%emt 0:01:03]} 50. Ng2 {[%emt 0:01:29]} Qc7 {[%emt 0:00:20]} 51. Nf4 {[%emt 0:00:37]} Bxf4 {[%emt 0:00:04]} 52. gxf4 {[%emt 0:00:02]} Qd7 {[%emt 0:00:18]} 53. Qb8 {[%emt 0:00:40]} 1/2-1/2

[Event "Belt Road Women 2019"]
[Site "Shaoxing"]
[Date "2019.07.10"]
[Round "3.4"]
[White "Harika, Dronavalli"]
[Black "Soumya, Swaminathan"]
[Result "1/2-1/2"]
[ECO "C55"]
[WhiteElo "2492"]
[BlackElo "2402"]
[Annotator "ChessBase"]
[PlyCount "119"]
[EventDate "2019.07.08"]
[EventType "swiss"]
[EventCountry "CHN"]
[SourceTitle "playchess.com"]
[Source "ChessBase"]
[SourceQuality "1"]
[TimeControl "5400+30"]

1. e4 {[%emt 0:00:00]} e5 {[%emt 0:05:17]} 2. Nf3 {[%emt 0:00:15]} Nc6 {[%emt 0:00:04]} 3. Bc4 {[%emt 0:00:42]} Nf6 {[%emt 0:00:05]} 4. d3 {[%emt 0:02:55]} Be7 {[%emt 0:00:33]} 5. O-O {[%emt 0:00:56]} O-O {[%emt 0:02:07]} 6. Re1 {[%emt 0:03:33]} d6 {[%emt 0:01:21]} 7. a4 {[%emt 0:00:09]} Na5 {[%emt 0:03:28]} 8. Ba2 {[%emt 0:00:12]} c5 {[%emt 0:00:14]} 9. c3 {[%emt 0:00:59]} Nc6 {[%emt 0:01:38]} 10. Na3 {[%emt 0:00:50]} Be6 {[%emt 0:07:55]} 11. Nc4 {[%emt 0:09:52]} Qc7 {[%emt 0:18:25]} 12. h3 {[%emt 0:11:17]} h6 {[%emt 0:03:18]} 13. Ne3 {[%emt 0:06:48]} Bxa2 {[%emt 0:01:33]} 14. Rxa2 {[%emt 0:00:05]} Rfe8 {[%emt 0:03:29]} 15. Bd2 {[%emt 0:02:45]} Rad8 {[%emt 0:01:48]} 16. c4 {[%emt 0:01:16]} Bf8 {[%emt 0:05:37]} 17. Nh2 {[%emt 0:02:48]} Nd4 {[%emt 0:08:05]} 18. Nhg4 {[%emt 0:01:45]} Nxg4 {[%emt 0:00:11]} 19. hxg4 {[%emt 0:00:05]} Qd7 {[%emt 0:10:02]} 20. Nd5 {[%emt 0:07:10]} Be7 {[%emt 0:07:39]} 21. b4 {[%emt 0:02:50]} Bg5 {[%emt 0:01:02]} 22. Bc3 {[%emt 0:00:15]} Ne6 {[%emt 0:04:42]} 23. g3 {[%emt 0:01:18]} cxb4 {[%emt 0:02:59]} 24. Bxb4 {[%emt 0:00:22]} Nc7 {[%emt 0:00:02]} 25. Nxc7 {[%emt 0:01:22]} Qxc7 {[%emt 0:00:03]} 26. Qe2 {[%emt 0:02:44]} Qc6 {[%emt 0:02:16]} 27. Rb1 {[%emt 0:00:52]} Rb8 {[%emt 0:00:40]} 28. Kg2 {[%emt 0:04:27]} a6 {[%emt 0:05:06]} 29. Be1 {[%emt 0:06:32]} g6 {[%emt 0:01:48]} 30. f3 {[%emt 0:01:01]} Rf8 {[%emt 0:00:49]} 31. Bf2 {[%emt 0:01:08]} b6 {[%emt 0:01:40]} 32. Rab2 {[%emt 0:01:20]} Qxa4 {[%emt 0:00:16]} 33. Ra2 {[%emt 0:01:33]} Qd7 {[%emt 0:00:13]} 34. Rxa6 {[%emt 0:00:04]} b5 {[%emt 0:00:12]} 35. cxb5 {[%emt 0:01:03]} Rxb5 {[%emt 0:00:04]} 36. Rxd6 {[%emt 0:02:25]} Qxd6 {[%emt 0:00:49]} 37. Rxb5 {[%emt 0:00:04]} Rc8 {[%emt 0:00:33]} 38. Rb7 {[%emt 0:05:36]} Qc6 {[%emt 0:02:13]} 39. Qb2 {[%emt 0:00:30]} Qc3 {[%emt 0:00:23]} 40. Qa2 {[%emt 0:01:26]} Rc7 {[%emt 0:00:07]} 41. Rxc7 {[%emt 0:00:42]} Qxc7 {[%emt 0:00:03]} 42. d4 {[%emt 0:03:05]} exd4 {[%emt 0:00:54]} 43. Bxd4 {[%emt 0:00:00]} Qd8 {[%emt 0:00:20]} 44. Qb2 {[%emt 0:03:52]} Be7 {[%emt 0:00:40]} 45. Qc3 {[%emt 0:00:30]} Qd6 {[%emt 0:00:30]} 46. Bh8 {[%emt 0:05:14]} f6 {[%emt 0:00:46]} 47. e5 {[%emt 0:00:02]} Qxe5 {[%emt 0:00:57]} 48. Qxe5 {[%emt 0:00:04]} fxe5 {[%emt 0:00:03]} 49. Bxe5 {[%emt 0:00:04]} Kf7 {[%emt 0:00:17]} 50. f4 {[%emt 0:00:04]} Bc5 {[%emt 0:00:31]} 51. Kf3 {[%emt 0:00:13]} Bb6 {[%emt 0:00:31]} 52. Ke4 {[%emt 0:00:09]} Bf2 {[%emt 0:00:12]} 53. Kf3 {[%emt 0:00:40]} Bc5 {[%emt 0:00:09]} 54. Bc3 {[%emt 0:00:04]} Bb6 {[%emt 0:00:34]} 55. Bd2 {[%emt 0:00:04]} Bc5 {[%emt 0:00:27]} 56. Be3 {[%emt 0:00:05]} Bb4 {[%emt 0:00:05]} 57. f5 {[%emt 0:00:33]} g5 {[%emt 0:00:06]} 58. Bd4 {[%emt 0:00:19]} Bd6 {[%emt 0:00:13]} 59. Bc3 {[%emt 0:00:05]} Bc7 {[%emt 0:00:14]} 60. Bd4 {[%emt 0:00:10]} 1/2-1/2

[Event "Belt Road Women 2019"]
[Site "Shaoxing"]
[Date "2019.07.10"]
[Round "3.5"]
[White "Stefanova, Antoaneta"]
[Black "Ni, Shiqun"]
[Result "1-0"]
[ECO "D27"]
[WhiteElo "2474"]
[BlackElo "2407"]
[Annotator "ChessBase"]
[PlyCount "57"]
[EventDate "2019.07.08"]
[EventType "swiss"]
[EventCountry "CHN"]
[SourceTitle "playchess.com"]
[Source "ChessBase"]
[SourceQuality "1"]
[TimeControl "5400+30"]

1. Nf3 {[%emt 0:00:00]} d5 {[%emt 0:00:00]} 2. d4 {[%emt 0:00:39]} Nf6 {[%emt 0:00:05]} 3. c4 {[%emt 0:00:24]} dxc4 {[%emt 0:00:35]} 4. e3 {[%emt 0:02:46]} e6 {[%emt 0:00:15]} 5. Bxc4 {[%emt 0:00:41]} c5 {[%emt 0:00:45]} 6. O-O {[%emt 0:00:26]} a6 {[%emt 0:03:18]} 7. Nc3 {[%emt 0:01:48]} Nc6 {[%emt 0:01:00]} 8. dxc5 {[%emt 0:02:21]} Qxd1 {[%emt 0:01:03]} 9. Rxd1 {[%emt 0:00:05]} Bxc5 {[%emt 0:00:05]} 10. Bd2 {[%emt 0:04:22]} Bd7 {[%emt 0:07:09]} 11. Rac1 {[%emt 0:03:59]} Rc8 {[%emt 0:01:25]} 12. Be1 {[%emt 0:02:31]} Ba7 {[%emt 0:06:47]} 13. Be2 {[%emt 0:35:56]} Ke7 {[%emt 0:01:42]} 14. Na4 {[%emt 0:07:15]} Rhd8 {[%emt 0:22:26]} 15. Nc5 {[%emt 0:02:23]} Bxc5 {[%emt 0:03:27]} 16. Rxc5 {[%emt 0:00:04]} Ne4 {[%emt 0:00:25]} 17. Rcc1 {[%emt 0:02:45]} e5 {[%emt 0:01:50]} 18. a4 {[%emt 0:04:41]} Nd6 {[%emt 0:11:01]} 19. b4 {[%emt 0:00:48]} e4 {[%emt 0:03:27]} 20. Ng5 {[%emt 0:01:15]} Ne5 {[%emt 0:08:34]} 21. Rxc8 {[%emt 0:03:39]} Bxc8 {[%emt 0:14:43]} 22. Bc3 {[%emt 0:04:12]} Ng4 {[%emt 0:03:14]} 23. b5 {[%emt 0:02:48]} f6 {[%emt 0:04:16]} 24. Ba5 {[%emt 0:01:41]} Rg8 {[%emt 0:00:23]} 25. Bb4 {[%emt 0:03:32]} fxg5 {[%emt 0:00:21]} 26. bxa6 {[%emt 0:02:11]} bxa6 {[%emt 0:00:32]} 27. Rxd6 {[%emt 0:00:13]} a5 {[%emt 0:00:21]} 28. Bc5 {[%emt 0:01:20]} Rd8 {[%emt 0:03:29]} 29. Rd4+ {[%emt 0:01:46]} 1-0

[Event "Belt Road Women 2019"]
[Site "Shaoxing"]
[Date "2019.07.10"]
[Round "3.7"]
[White "Tan, Zhongyi"]
[Black "Li, Xueyi"]
[Result "1-0"]
[ECO "B12"]
[WhiteElo "2511"]
[BlackElo "2330"]
[Annotator "ChessBase"]
[PlyCount "63"]
[EventDate "2019.07.08"]
[EventType "swiss"]
[EventCountry "CHN"]
[SourceTitle "playchess.com"]
[Source "ChessBase"]
[SourceQuality "1"]
[TimeControl "5400+30"]

1. e4 {[%emt 0:00:55]} c6 {[%emt 0:00:00]} 2. d4 {[%emt 0:00:06]} d5 {[%emt 0:00:00]} 3. e5 {[%emt 0:00:04]} c5 {[%emt 0:00:06]} 4. dxc5 {[%emt 0:00:06]} e6 {[%emt 0:00:06]} 5. Nf3 {[%emt 0:00:30]} Bxc5 {[%emt 0:00:09]} 6. Bd3 {[%emt 0:00:06]} Ne7 {[%emt 0:00:13]} 7. O-O {[%emt 0:00:06]} Ng6 {[%emt 0:00:22]} 8. Nbd2 {[%emt 0:00:05]} Nc6 {[%emt 0:01:31]} 9. Nb3 {[%emt 0:00:25]} Bb6 {[%emt 0:00:58]} 10. Re1 {[%emt 0:00:08]} O-O {[%emt 0:02:28]} 11. Be3 {[%emt 0:00:14]} Bc7 {[%emt 0:04:22]} 12. Bc5 {[%emt 0:00:23]} Re8 {[%emt 0:02:14]} 13. Bxg6 {[%emt 0:00:11]} fxg6 {[%emt 0:02:40]} 14. h4 {[%emt 0:04:58]} b6 {[%emt 0:03:50]} 15. Ba3 {[%emt 0:00:32]} b5 {[%emt 0:04:16]} 16. c3 {[%emt 0:00:51]} a5 {[%emt 0:02:26]} 17. Bc5 {[%emt 0:02:46]} Bb6 {[%emt 0:01:24]} 18. a3 {[%emt 0:03:20]} a4 {[%emt 0:11:52]} 19. Bxb6 {[%emt 0:00:13]} Qxb6 {[%emt 0:00:09]} 20. Nbd4 {[%emt 0:00:11]} Na5 {[%emt 0:00:47]} 21. Ng5 {[%emt 0:10:02]} Bd7 {[%emt 0:02:42]} 22. h5 {[%emt 0:21:11]} Qd8 {[%emt 0:00:36]} 23. f4 {[%emt 0:01:00]} Rf8 {[%emt 0:09:11]} 24. hxg6 {[%emt 0:17:25]} Rxf4 {[%emt 0:00:36]} 25. gxh7+ {[%emt 0:00:08]} Kh8 {[%emt 0:00:06]} 26. Qh5 {[%emt 0:06:39]} Be8 {[%emt 0:04:36]} 27. Qh2 {[%emt 0:09:10]} Rxd4 {[%emt 0:01:35]} 28. Rf1 {[%emt 0:00:16]} Bg6 {[%emt 0:02:08]} 29. Nxe6 {[%emt 0:00:16]} Rh4 {[%emt 0:00:12]} 30. Nxd8 {[%emt 0:00:05]} Rxh2 {[%emt 0:00:47]} 31. Rf8+ {[%emt 0:00:04]} Kxh7 {[%emt 0:00:13]} 32. Kxh2 {[%emt 0:00:05]} 1-0

[Event "Belt Road Women 2019"]
[Site "Shaoxing"]
[Date "2019.07.10"]
[Round "3.8"]
[White "Fominykh, Maria"]
[Black "Lei, Tingjie"]
[Result "0-1"]
[ECO "A49"]
[WhiteElo "2243"]
[BlackElo "2505"]
[Annotator "ChessBase"]
[PlyCount "80"]
[EventDate "2019.07.08"]
[EventType "swiss"]
[EventCountry "CHN"]
[SourceTitle "playchess.com"]
[Source "ChessBase"]
[SourceQuality "1"]
[TimeControl "5400+30"]

1. d4 {[%emt 0:00:00]} Nf6 {[%emt 0:00:00]} 2. Nf3 {[%emt 0:00:00]} g6 {[%emt 0:00:24]} 3. g3 {[%emt 0:00:39]} c5 {[%emt 0:01:11]} 4. c3 {[%emt 0:02:42]} Qc7 {[%emt 0:07:20]} 5. Bg2 {[%emt 0:00:31]} Bg7 {[%emt 0:00:05]} 6. O-O {[%emt 0:00:14]} O-O {[%emt 0:00:09]} 7. Bf4 {[%emt 0:19:21]} d6 {[%emt 0:00:27]} 8. Qc1 {[%emt 0:07:41]} Re8 {[%emt 0:02:40]} 9. Bh6 {[%emt 0:02:03]} e5 {[%emt 0:08:26]} 10. Bxg7 {[%emt 0:00:37]} Kxg7 {[%emt 0:00:06]} 11. dxe5 {[%emt 0:05:50]} dxe5 {[%emt 0:00:56]} 12. Nfd2 {[%emt 0:00:20]} h5 {[%emt 0:05:53]} 13. e4 {[%emt 0:06:45]} h4 {[%emt 0:10:02]} 14. Re1 {[%emt 0:01:52]} Be6 {[%emt 0:07:10]} 15. a4 {[%emt 0:05:32]} Rh8 {[%emt 0:09:49]} 16. Na3 {[%emt 0:07:43]} Nc6 {[%emt 0:02:22]} 17. Nac4 {[%emt 0:05:31]} Rh5 {[%emt 0:06:44]} 18. Ne3 {[%emt 0:02:35]} Rah8 {[%emt 0:00:48]} 19. Ndf1 {[%emt 0:13:24]} Qc8 {[%emt 0:02:53]} 20. Qd1 {[%emt 0:04:06]} Nh7 {[%emt 0:10:54]} 21. g4 {[%emt 0:07:18]} Rh6 {[%emt 0:15:02]} 22. h3 {[%emt 0:00:14]} Rd8 {[%emt 0:01:57]} 23. Qe2 {[%emt 0:00:21]} Ng5 {[%emt 0:00:27]} 24. a5 {[%emt 0:02:18]} Rhh8 {[%emt 0:01:54]} 25. Qb5 {[%emt 0:01:03]} Ne7 {[%emt 0:00:52]} 26. Red1 {[%emt 0:02:21]} Bd7 {[%emt 0:01:37]} 27. Qc4 {[%emt 0:00:18]} Ne6 {[%emt 0:00:05]} 28. Nd5 {[%emt 0:00:37]} Nxd5 {[%emt 0:01:36]} 29. Rxd5 {[%emt 0:00:18]} Qc7 {[%emt 0:00:21]} 30. Ne3 {[%emt 0:00:29]} Bc6 {[%emt 0:00:20]} 31. Rxd8 {[%emt 0:01:11]} Rxd8 {[%emt 0:00:04]} 32. Nd5 {[%emt 0:01:16]} Qd6 {[%emt 0:00:17]} 33. Bf3 {[%emt 0:00:37]} Bxd5 {[%emt 0:01:11]} 34. Qxd5 {[%emt 0:00:04]} Nf4 {[%emt 0:00:34]} 35. Qxb7 {[%emt 0:00:55]} Nxh3+ {[%emt 0:00:47]} 36. Kh2 {[%emt 0:00:27]} Qd2 {[%emt 0:00:50]} 37. Rf1 {[%emt 0:00:35]} Qf4+ {[%emt 0:00:15]} 38. Kg2 {[%emt 0:00:23]} Ng5 {[%emt 0:00:07]} 39. Be2 {[%emt 0:00:17]} Rd2 {[%emt 0:00:12]} 40. Qb5 {[%emt 0:00:17]} h3+ {[%emt 0:00:16]} 0-1